[Event "44th Chess Olympiad Open 2022"]
[Site "Chennai"]
[Date "2022.08.06"]
[Round "8.24"]
[White "Peralta, Fernando"]
[Black "Chukavin, Kirill"]
[Result "1-0"]
[WhiteElo "2591"]
[BlackElo "2418"]
[Annotator "TA"]
[PlyCount "83"]
[EventDate "2022.??.??"]
[TimeControl "60"]

{[%evp 11,83,0,0,0,0,-8,0,-20,25,31,20,10,6,-7,0,-12,28,29,32,33,28,12,12,-7,
-7,-19,-1,-14,0,0,0,0,67,66,89,70,157,106,112,113,113,113,113,113,113,112,134,
135,152,123,132,133,125,125,139,139,139,139,162,174,176,0,375,350,332,245,489,
481,550,538,497,439,402,405]} 1. d4 {[%emt 0:00:04]} Nf6 {[%emt 0:00:13]} 2. c4
{[%emt 0:00:05]} e6 {[%emt 0:00:06]} 3. Nc3 {[%emt 0:00:07]} Bb4 {[%emt 0:00:
00]} 4. e3 {[%emt 0:00:16]} O-O {[%emt 0:00:14]} 5. Bd3 {[%emt 0:00:13]} d5 {
[%emt 0:00:20]} 6. cxd5 {[%emt 0:00:49]} exd5 {[%emt 0:00:16]} 7. a3 {[%emt 0:
00:00] E48: Nimzo-Indian: Rubinstein: 5 Bd3 d5 including 6 Ne2, but excluding
6 a3.} Bd6 {[%emt 0:01:31]} 8. Qc2 {[%emt 0:00:20]} c6 {[%emt 0:01:33]} 9. Nge2
{[%emt 0:00:19] The position is equal.} a5 {[%emt 0:04:22]} 10. O-O {[%emt 0:
00:00]} Na6 {[%emt 0:10:04]} 11. Bd2 {[%emt 0:10:06]} Re8 {[%emt 0:06:43]} 12.
Ng3 {[%emt 0:15:33]} g6 {[%emt 0:08:39] [#]} 13. Rae1 $146 {[%emt 0:06:00]} ({
Predecessor:} 13. Nce2 Nc7 14. f3 Ne6 15. f4 Ng7 16. h3 Qc7 17. Rf3 Ne4 18.
Bxe4 dxe4 19. Rf2 {0-1 (56) Arkhipenko,D (2163)-Romanov,E (2599) Lipetsk 2020})
13... c5 {[%emt 0:07:23]} 14. Bb5 {[%emt 0:13:16]} (14. e4 {is interesting.}
cxd4 15. Nxd5 Nxd5 16. exd5 Rxe1 17. Rxe1 Nc5 18. b4) 14... Bd7 {[%emt 0:04:41]
} 15. Bxa6 {[%emt 0:25:01]} bxa6 {[%emt 0:30:44]} 16. dxc5 {[%emt 0:00:00]}
Bxc5 {[%emt 0:00:24]} 17. Nxd5 {[%emt 0:00:00]} Nxd5 {[%emt 0:00:28]} 18. Qxc5
{[%emt 0:00:00]} Bb5 {[%emt 0:00:24]} 19. e4 $1 {[%emt 0:00:00]} Nc7 {[%emt 0:
00:00]} 20. Bxa5 {[%emt 0:00:00]} Bxf1 {[%emt 0:00:58]} 21. Bxc7 {[%emt 0:00:
00]} Qd7 {[%emt 0:00:13]} 22. Ba5 $36 {[%emt 0:14:35][%cal Yc7a5,Ya5c3,Yc3f6]
White is pushing.} ({Much worse is} 22. Nxf1 Rac8 $11) 22... Bb5 {[%emt 0:06:
21]} 23. Bc3 {[%emt 0:01:17][%cal Yg3h5]} Qe7 {[%emt 0:03:29] [#]} (23... Rac8
$14 24. Qe3 Qd8) 24. Qd4 {[%emt 0:04:19] White is more active.} (24. Qe3 $142
$1 {[%cal Yg3h5] Black must now prevent Nh5!} f6 25. Qf4) 24... f6 $16 {
[%emt 0:00:07]} 25. Qxf6 {[%emt 0:00:06]} Qxf6 {[%emt 0:00:04]} 26. Bxf6 {
[%emt 0:00:03]} Kf7 {[%emt 0:00:33]} 27. Bc3 {[%emt 0:00:10]} Rad8 {[%emt 0:00:
00]} 28. f3 {[%emt 0:02:04]} h5 {[%emt 0:02:01]} 29. h4 {[%emt 0:02:18]} Ke6 {
[%emt 0:02:23]} 30. Kf2 {[%emt 0:01:43]} Rf8 {[%emt 0:00:04]} 31. Ne2 {[%emt 0:
00:00]} Bxe2 {[%emt 0:00:15]} 32. Kxe2 {[%emt 0:00:04] Endgame KRR-KRB} Rf4 {
[%emt 0:00:31]} 33. Rh1 {[%emt 0:00:22]} Rf7 {[%emt 0:00:51]} 34. Rh3 {[%emt 0:
01:34]} Rg8 {[%emt 0:00:22]} 35. Ke3 {[%emt 0:02:43]} Rd7 {[%emt 0:00:38]} 36.
Ke2 $2 {[%emt 0:00:28] [#]} (36. Rg3 $18) 36... g5 $2 {[%emt 0:01:29]} (36...
Rf7 $1 $11 {and Black is okay.}) 37. hxg5 $18 {[%emt 0:00:32]} Rxg5 {[%emt 0:
00:03]} 38. g3 {[%emt 0:00:46]} Rh7 $2 {[%emt 0:00:00]} (38... Kf7 {is a
better defense.} 39. f4 Rg4) 39. f4 {[%emt 0:00:44][%cal Yf3f4,Yf4f5]} Rg4 {
[%emt 0:00:17]} 40. Kf3 {[%emt 0:00:28]} Rg8 {[%emt 0:09:15]} 41. Rh1 {[%emt 0:
08:28]} Rd7 {[%emt 0:01:03]} 42. f5+ {[%emt 0:01:16] Weighted Error Value:
White=0.13 (very precise) /Black=0.49} 1-0

[Event "44th Chess Olympiad Open 2022"]
[Site "Chennai"]
[Date "2022.08.06"]
[Round "8.24"]
[White "Krysa, Leandro"]
[Black "Shishkov, Andrei"]
[Result "1/2-1/2"]
[WhiteElo "2515"]
[BlackElo "2366"]
[Annotator "TA"]
[PlyCount "58"]
[EventDate "2022.??.??"]
[TimeControl "60"]

{[%evp 17,58,39,39,41,52,53,70,52,34,32,66,70,48,56,62,61,70,64,72,54,106,86,
139,132,132,138,151,145,223,224,226,225,223,218,213,199,209,197,218,146,159,
127,135]} 1. d4 {[%emt 0:00:06]} Nf6 {[%emt 0:00:04]} 2. c4 {[%emt 0:00:20]} e6
{[%emt 0:00:04][%cal Ye7e6,Ye6d5,Yd5d4,Yd4c3]} 3. Nf3 {[%emt 0:00:20]} d5 {
[%emt 0:00:09]} 4. Nc3 {[%emt 0:00:19]} c5 {[%emt 0:00:17]} 5. e3 {[%emt 0:00:
00]} a6 {[%emt 0:00:12]} 6. cxd5 {[%emt 0:00:23]} exd5 {[%emt 0:00:16]} 7. Bd3
{[%emt 0:00:11]} Nc6 {[%emt 0:02:54]} 8. O-O {[%emt 0:01:17]} Bd6 {[%emt 0:00:
00]} 9. dxc5 {[%emt 0:16:57]} Bxc5 {[%emt 0:00:05]} 10. e4 {[%emt 0:00:26] 10.
b3 might become the main line. D32: Tarrasch Defence: Sidelines and lines
without g3.} d4 {[%emt 0:25:51]} 11. e5 {[%emt 0:04:29]} Nxe5 {[%emt 0:04:28] 
[#]} 12. Nxe5 $146 {[%emt 0:11:27] White is slightly better.} ({Predecessor:} 
12. Re1 dxc3 13. Rxe5+ Be7 14. Qe2 Kf8 15. Bc2 Bd7 16. Bb3 Bb5 17. Rxb5 axb5
18. Ne5 {1-0 (41) Haluschka,R (1700)-Franchino,S (1400) FICGS email 2006})
12... dxc3 {[%emt 0:00:05]} 13. Qa4+ $40 {[%emt 0:00:05] White attacks.} ({
Of course not} 13. Bc4 Be6 14. Bxe6 fxe6 $11) 13... Bd7 {[%emt 0:00:00]} 14.
Nxd7 {[%emt 0:05:16]} Qxd7 {[%emt 0:00:18]} 15. Re1+ {[%emt 0:00:00]} Be7 {
[%emt 0:03:20]} 16. Qxd7+ {[%emt 0:06:39]} Nxd7 {[%emt 0:01:19]} 17. bxc3 {
[%emt 0:05:34] [#] Ba3 is the strong threat.} Nc5 {[%emt 0:14:54]} 18. Bc4 {
[%emt 0:14:59] White is more active.} Rd8 {[%emt 0:14:28]} ({Better is} 18...
Ne6 $14) 19. a4 {[%emt 0:16:01]} Nd3 {[%emt 0:04:02]} (19... Ne6 $142) 20. Bxd3
$16 {[%emt 0:00:45]} Rxd3 {[%emt 0:00:02]} 21. Ba3 {[%emt 0:00:18]} Rd7 {
[%emt 0:01:28]} 22. Rab1 {[%emt 0:01:42]} Kd8 {[%emt 0:02:54]} (22... h5 $16 {
was called for.} 23. Kf1 Rh6) 23. Bxe7+ {[%emt 0:01:09]} Rxe7 {[%emt 0:00:00]}
24. Rxe7 {[%emt 0:00:11]} Kxe7 {[%emt 0:00:01]} 25. Rxb7+ $18 {[%emt 0:00:00]
KR-KR} Ke6 {[%emt 0:00:30]} 26. Rb6+ {[%emt 0:05:08]} Kd5 {[%emt 0:00:48]} 27.
Rxa6 {[%emt 0:00:26]} Rc8 {[%emt 0:00:07]} 28. h4 {[%emt 0:02:09]} Rxc3 {
[%emt 0:00:35]} 29. Ra7 {[%emt 0:01:17]} Ke6 {[%emt 0:00:38] Weighted Error
Value: White=0.07 (flawless) /Black=0.22 (precise)} 1/2-1/2

[Event "44th Chess Olympiad Open 2022"]
[Site "Chennai"]
[Date "2022.08.06"]
[Round "8.24"]
[White "Volodin, Aleksandr"]
[Black "Perez Ponsa, Federico"]
[Result "1/2-1/2"]
[WhiteElo "2454"]
[BlackElo "2554"]
[Annotator "TA"]
[PlyCount "136"]
[EventDate "2022.??.??"]
[TimeControl "60"]

{[%evp 17,136,3,17,8,2,-9,-9,-7,0,0,2,-35,2,0,20,0,0,0,0,-15,14,0,14,14,14,22,
17,13,39,36,36,39,36,33,50,12,26,0,0,-3,0,0,0,0,0,0,0,0,0,0,0,0,0,0,0,0,0,0,0,
0,0,0,0,0,59,81,81,57,58,58,62,74,81,58,81,87,91,91,91,50,50,59,105,115,110,
100,119,100,338,328,395,395,386,378,395,389,533,527,515,486,480,462,1358,1186,
1035,860,2158,1639,4914,310,310,33,36,0,19,0,8,8,8,8,8]} 1. d4 {[%emt 0:00:03]}
Nf6 {[%emt 0:00:07]} 2. c4 {[%emt 0:00:06]} e6 {[%emt 0:00:05]} 3. g3 {[%emt 0:
00:00]} d5 {[%emt 0:00:43]} 4. Bg2 {[%emt 0:00:32]} Bb4+ {[%emt 0:00:25]} 5.
Bd2 {[%emt 0:00:10]} a5 {[%emt 0:00:09]} 6. a3 {[%emt 0:04:32]} Be7 {[%emt 0:
00:00]} 7. Qc2 {[%emt 0:00:34]} O-O {[%emt 0:02:01]} 8. Nf3 {[%emt 0:00:14]}
Nbd7 {[%emt 0:02:23]} 9. O-O {[%emt 0:00:19]} c6 {[%emt 0:00:33]} 10. Bf4 {
[%emt 0:01:55] E11: Bogo-Indian.} b6 {[%emt 0:01:32]} 11. Nbd2 {[%emt 0:12:24]
[%cal Yb1d2,Yd2b3,Yb3c1,Yc1d3]} Ba6 {[%emt 0:13:38]} 12. Rfe1 {[%emt 0:03:52] 
[#]} Nh5 $146 {[%emt 0:09:58]} ({Predecessor:} 12... c5 13. e4 dxc4 14. d5 exd5
15. exd5 Nxd5 16. Nxc4 Nxf4 17. gxf4 Bf6 18. Rad1 Qc7 {0-1 (37) Magerramov,E 
(2560)-Aleksandrov,A (2450) Smolensk 1991}) 13. Be5 {[%emt 0:06:41]} Rc8 {
[%emt 0:08:18]} ({Don't take} 13... f6 14. cxd5 Nxe5 15. dxe5 cxd5 16. Qc6 $16)
14. e4 {[%emt 0:06:27]} Nxe5 {[%emt 0:08:52]} (14... g5 {is more complex.} 15.
cxd5 cxd5 16. Qd1 g4) 15. dxe5 {[%emt 0:03:49]} d4 {[%emt 0:04:31]} 16. Nb3 {
[%emt 0:07:24]} c5 {[%emt 0:01:36]} 17. Nc1 {[%emt 0:00:00]} g6 {[%emt 0:06:39]
} 18. a4 {[%emt 0:00:37]} Bb7 {[%emt 0:04:48]} 19. Nd3 {[%emt 0:01:12]} f5 {
[%emt 0:03:37]} 20. exf6 {[%emt 0:00:49]} Bxf6 {[%emt 0:03:39]} ({Much less
strong is} 20... Nxf6 21. Nf4 $16) 21. e5 {[%emt 0:00:00]} Be7 {[%emt 0:01:52]
A strong pair of Bishops.} 22. Qe2 {[%emt 0:00:45]} Qd7 {[%emt 0:01:30]} 23.
Nd2 {[%emt 0:04:55]} Bxg2 {[%emt 0:01:20]} 24. Kxg2 {[%emt 0:00:06]} Qc6+ {
[%emt 0:01:21]} 25. Kg1 {[%emt 0:07:46]} Rf7 {[%emt 0:00:00]} 26. Qg4 {[%emt 0:
00:40]} Rcf8 {[%emt 0:00:49]} 27. Re4 {[%emt 0:05:11]} Ng7 {[%emt 0:01:46]} 28.
b3 {[%emt 0:00:19]} Rf5 {[%emt 0:01:10]} 29. Re2 {[%emt 0:06:08]} g5 {[%emt 0:
04:49]} 30. h3 {[%emt 0:00:14]} h5 {[%emt 0:00:47]} 31. Qe4 {[%emt 0:00:44]}
Qxe4 {[%emt 0:01:35]} 32. Rxe4 {[%emt 0:00:08]} Kh7 {[%emt 0:00:50]} 33. Kg2 {
[%emt 0:00:30]} Kg6 {[%emt 0:00:21]} 34. Rf1 {[%emt 0:00:00]} R5f7 {[%emt 0:01:
05]} 35. g4 {[%emt 0:00:44]} Ne8 {[%emt 0:05:01]} 36. Re2 {[%emt 0:04:46]} Nc7
{[%emt 0:00:50]} 37. f3 {[%emt 0:00:21]} Na6 {[%emt 0:00:00]} 38. Ne4 {[%emt 0:
04:29]} Nb4 {[%emt 0:01:07]} 39. Nxb4 {[%emt 0:01:16]} axb4 {[%emt 0:00:02]}
40. Ra2 {[%emt 0:02:08]} hxg4 {[%emt 0:02:30]} (40... Ra8 $1 $11) 41. hxg4 $14
{[%emt 0:16:25]} Ra8 {[%emt 0:13:54]} 42. Nf2 {[%emt 0:00:00] White is more
active.} Rh7 {[%emt 0:05:46]} 43. Rfa1 {[%emt 0:00:00]} Bd8 {[%emt 0:00:49]}
44. Nd3 {[%emt 0:00:00]} Bc7 {[%emt 0:00:51] [#] And now ... Rah8 would win.}
45. Rh1 $1 {[%emt 0:00:00]} Rxh1 {[%emt 0:04:14]} 46. Kxh1 {[%emt 0:00:00]
Endgame KRB-KRN} Bd8 {[%emt 0:03:06]} 47. Kg2 {[%emt 0:00:00]} Be7 {[%emt 0:00:
08]} 48. Rf2 {[%emt 0:00:00]} Rh8 {[%emt 0:00:00]} 49. Rf1 {[%emt 0:00:00]} Rh7
{[%emt 0:03:08]} (49... Kf7 $14 {feels stronger.}) 50. a5 $16 {[%emt 0:03:40]}
bxa5 {[%emt 0:00:08]} 51. Ra1 {[%emt 0:00:00]} Bd8 {[%emt 0:00:05]} 52. Nxc5 {
[%emt 0:00:06]} Bb6 $2 {[%emt 0:02:08]} (52... Kf7 $16) 53. Nxe6 $18 {[%emt 0:
04:04]} Re7 {[%emt 0:01:16] [#]} 54. f4 $1 {[%emt 0:00:05]} gxf4 {[%emt 0:02:
03]} 55. Nxf4+ {[%emt 0:00:05]} Kg5 {[%emt 0:00:05]} 56. Nd5 {[%emt 0:00:05]
[%csl Yb6,Ye7]} Rxe5 {[%emt 0:00:41]} 57. Nxb6 {[%emt 0:00:10]} Kxg4 {[%emt 0:
00:03] KRN-KR} 58. Rd1 {[%emt 0:01:14]} Re2+ {[%emt 0:01:32]} 59. Kf1 {[%emt 0:
00:07]} Re3 {[%emt 0:00:21]} (59... Rh2 $142 60. Rxd4+ Kf3 61. Rd3+ Ke4) 60.
Rxd4+ {[%emt 0:03:39]} Kf3 {[%emt 0:00:04]} 61. c5 {[%emt 0:03:01] c6 is the
strong threat.} Rxb3 {[%emt 0:00:11]} 62. Ke1 {[%emt 0:00:12]} Ke3 {[%emt 0:01:
30]} 63. Rd1 $2 {[%emt 0:00:08]} (63. Rd7 a4 64. c6) 63... Ke4 {[%emt 0:00:31]}
64. Rc1 $2 {[%emt 0:02:40]} (64. Nd5 $18 {Threatens to win with c6.} Rb2 65.
Nf6+ Ke3 66. Ng4+ Ke4 67. Rc1) 64... Rh3 $14 {[%emt 0:00:02]} (64... Rc3 65.
Rxc3 bxc3 66. c6 Kd4 67. c7 Kc5 68. Nd7+ Kd6 69. c8=Q) 65. Rd1 {[%emt 0:08:14]}
b3 {[%emt 0:00:52] The position is equal.} 66. Nc4 {[%emt 0:04:25]} Rh1+ {
[%emt 0:00:35]} 67. Kd2 {[%emt 0:00:04]} Rxd1+ {[%emt 0:00:07]} 68. Kxd1 {
[%emt 0:00:03] c6 would kill now.} Kd5 {[%emt 0:00:04][%csl Yc4,Yc5] Weighted
Error Value: White=0.05 (flawless) / Black=0.20 (precise)} 1/2-1/2

[Event "44th Chess Olympiad Open 2022"]
[Site "Chennai"]
[Date "2022.08.06"]
[Round "8.24"]
[White "Kanep, Meelis"]
[Black "Flores, Diego"]
[Result "0-1"]
[WhiteElo "2417"]
[BlackElo "2528"]
[Annotator "TA"]
[PlyCount "70"]
[EventDate "2022.??.??"]
[TimeControl "60"]

{[%evp 12,70,15,3,15,0,21,0,0,0,0,0,0,0,0,0,0,-26,-29,-24,-13,-24,-29,-33,-32,
-39,-30,-27,-41,-142,-150,-240,-25,-14,-13,-19,-25,-86,-83,-94,-100,-104,-100,
-112,-125,-126,-88,-179,-171,-166,-83,-88,-87,-447,-454,-568,-471,-436,-428,
-486,-480]} 1. d4 {[%emt 0:00:04]} Nf6 {[%emt 0:00:24]} 2. c4 {[%emt 0:00:15]}
e6 {[%emt 0:00:30]} 3. Nf3 {[%emt 0:00:16]} d5 {[%emt 0:00:35]} 4. g3 {[%emt 0:
00:00]} Bb4+ {[%emt 0:00:22]} 5. Bd2 {[%emt 0:00:17]} a5 {[%emt 0:00:12]} 6.
Bg2 {[%emt 0:00:54]} O-O {[%emt 0:00:48]} 7. O-O {[%emt 0:00:25] 7.Qc2 is more
fashionable.} dxc4 {[%emt 0:00:21] E11: Bogo-Indian.} 8. Qc2 {[%emt 0:11:28]}
Bxd2 {[%emt 0:01:09]} 9. Nbxd2 {[%emt 0:00:35]} b5 $1 {[%emt 0:00:09] The
position is equal.} 10. a4 {[%emt 0:03:35]} c6 {[%emt 0:02:18]} 11. b3 {
[%emt 0:02:06]} cxb3 {[%emt 0:02:08]} 12. Nxb3 {[%emt 0:00:08]} b4 {[%emt 0:00:
00]} 13. e4 {[%emt 0:05:10] Inhibits Nd5.} Nbd7 {[%emt 0:14:06]} 14. Ne5 {
[%emt 0:16:39]} Nxe5 {[%emt 0:10:12]} 15. dxe5 {[%emt 0:04:51]} Nd7 {[%emt 0:
00:00]} 16. Qxc6 {[%emt 0:00:00]} Ba6 {[%emt 0:05:10]} 17. Rfd1 {[%emt 0:00:00]
} Nxe5 {[%emt 0:00:20]} 18. Rxd8 {[%emt 0:05:34]} Nxc6 {[%emt 0:00:08] [#]} 19.
Rd6 $146 {[%emt 0:08:29]} ({Predecessor:} 19. Rxa8 Rxa8 20. Rc1 Rc8 21. Rc5 Nb8
22. Rxa5 Rd8 {0-1 (22) Sviridov,V (2569)-Grachev,B (2615) Sochi 2022}) 19...
Ne5 {[%emt 0:09:46] White must now prevent ...Bc4.} 20. Nxa5 {[%emt 0:01:31]} (
{White should try} 20. f4 $1 $15 Nc4 21. Rc6) 20... Bd3 $1 $36 {[%emt 0:02:57]
White is under strong pressure.} 21. Nb3 {[%emt 0:12:33]} (21. Nc6 $17 {
is a better defense.} b3 22. Nxe5) 21... Rfb8 $2 {[%emt 0:05:07]} ({Black
should play} 21... Bc2 $1 $19 {[%cal Rc2b3]} 22. Nd4 b3 23. Nxc2 bxc2) 22. f4
$11 {[%emt 0:08:43] Strongly threatening Rc1.} Bc2 $1 {[%emt 0:01:03] And now .
..Nc4 would win.} 23. Nd2 {[%emt 0:00:26] Against Nc4} Ng4 {[%emt 0:00:00] ...
b3 is the strong threat.} 24. Bf3 {[%emt 0:05:48]} (24. a5 $1 $11) 24... h5 $1
$17 {[%emt 0:01:29]} 25. h3 {[%emt 0:01:57]} Nf6 $1 {[%emt 0:02:44] Threatens
to win with ...b3.} (25... Ne3 26. Kf2 $16) 26. e5 {[%emt 0:06:13][%csl Ya8,
Yf6]} Nd5 $1 {[%emt 0:00:25]} 27. Nc4 {[%emt 0:00:09]} b3 {[%emt 0:00:00]
Hoping for ...b2.} 28. Nb2 {[%emt 0:02:11]} h4 {[%emt 0:05:21] Black is more
active.} 29. Kf2 {[%emt 0:03:07]} (29. Bxd5 $17 exd5 30. gxh4) 29... hxg3+ {
[%emt 0:00:44]} 30. Kxg3 {[%emt 0:00:01] [#]} Ra5 {[%emt 0:00:18]} (30... Rc8
$1 $19 {aiming for ...Bf5.} 31. Bxd5 exd5 32. Rxd5 Rc3+ 33. Kf2 Be4) 31. Bxd5 {
[%emt 0:00:31]} exd5 {[%emt 0:00:15]} ({Of course not} 31... Rxd5 $6 32. Rxd5
exd5 33. a5 $11) 32. Re1 $2 {[%emt 0:01:11] [#] This move loses the game for
White.} (32. Rc6 $17 {is tougher.}) 32... Rc5 $1 $19 {[%emt 0:01:54] Black is
clearly winning.} 33. Kf2 {[%emt 0:00:52]} Rb4 {[%emt 0:01:21]} 34. e6 {
[%emt 0:00:33]} fxe6 {[%emt 0:00:24]} (34... Rxf4+ $2 35. Kg3 Rf6 36. e7 (36.
Rd8+ Kh7 $11) 36... Rxd6 37. e8=Q+ Kh7 38. Qf8 (38. Qxf7 Rg6+ 39. Kh4 Rh6+ 40.
Kg4 Rg6+ 41. Kh4 Rh6+ 42. Kg3 Rg6+ 43. Kh4 $11) 38... Rc3+ 39. Kf4 Rf6+ 40. Ke5
$18) 35. Rexe6 {[%emt 0:00:03]} Be4 {[%emt 0:00:45] Weighted Error Value:
White=0.42/Black=0.19 (very precise)} 0-1

[Event "44th Chess Olympiad Open 2022"]
[Site "Chennai"]
[Date "2022.08.06"]
[Round "8.25"]
[White "Dragnev, Valentin"]
[Black "Murphy, Conor E"]
[Result "1/2-1/2"]
[WhiteElo "2557"]
[BlackElo "2404"]
[Annotator "TA"]
[PlyCount "93"]
[EventDate "2022.??.??"]
[TimeControl "60"]

{[%evp 9,93,1,27,14,20,22,22,29,27,20,25,8,0,0,33,16,19,6,22,22,22,22,23,20,11,
17,11,21,20,0,0,0,0,0,0,0,0,0,0,0,0,0,0,0,0,0,0,0,0,0,0,0,16,16,9,10,17,25,26,
27,7,35,236,0,109,102,101,102,169,8,8,0,0,0,0,0,0,0,0,0,0,0,0,0,0,0]} 1. e4 {
[%emt 0:00:03]} e5 {[%emt 0:00:16]} 2. Nf3 {[%emt 0:00:05]} Nc6 {[%emt 0:00:07]
} 3. Bb5 {[%emt 0:00:04]} Nf6 {[%emt 0:00:22]} 4. d3 {[%emt 0:00:30]} Bc5 {
[%emt 0:00:22]} 5. c3 {[%emt 0:00:07]} O-O {[%emt 0:00:09]} 6. O-O {[%emt 0:00:
00] C65: Ruy Lopez: Berlin Defence (3...Nf6), unusual lines and 4 0-0 Bc5.} d5
{[%emt 0:00:26]} 7. exd5 {[%emt 0:00:40]} Qxd5 {[%emt 0:00:09][%cal Yc5f2]} 8.
Bc4 {[%emt 0:00:18]} Qd8 {[%emt 0:00:16]} 9. Nbd2 {[%emt 0:04:19]} a5 {[%emt 0:
00:00]} 10. h3 {[%emt 0:08:17]} h6 {[%emt 0:01:07]} 11. Re1 {[%emt 0:03:32]}
Re8 {[%emt 0:18:10] [#]} 12. Qb3 $146 {[%emt 0:03:22]} ({Predecessor:} 12. Bb5
Qd5 13. d4 exd4 14. Rxe8+ Nxe8 15. Nb3 Bb6 16. Qe2 Nd6 17. Bxc6 bxc6 18. Nbxd4
{0-1 (33) Hansen,E (2606)-Lazavik,D (2465) Chess.com INT 2021}) 12... Re7 {
[%emt 0:02:17]} 13. a4 {[%emt 0:03:01]} Rb8 {[%emt 0:03:15]} 14. Ne4 {[%emt 0:
00:00]} Nxe4 {[%emt 0:02:52]} 15. dxe4 {[%emt 0:00:10]} Be6 {[%emt 0:07:32]}
16. Be3 {[%emt 0:09:47]} Bxe3 {[%emt 0:03:23]} 17. Rxe3 {[%emt 0:00:07]} Bxc4 {
[%emt 0:02:40]} 18. Qxc4 {[%emt 0:00:02]} Rd7 {[%emt 0:00:15] Prevents Rd3.}
19. Ree1 {[%emt 0:05:03]} Qf6 {[%emt 0:03:35]} 20. Rad1 {[%emt 0:10:13]} Rbd8 {
[%emt 0:02:15]} 21. Qb3 {[%emt 0:04:23]} b6 {[%emt 0:07:35]} 22. Rxd7 {[%emt 0:
00:00]} Rxd7 {[%emt 0:00:07]} 23. Rd1 {[%emt 0:00:38]} Qe6 {[%emt 0:02:45]} 24.
Qc2 {[%emt 0:00:07]} Rd6 {[%emt 0:09:12]} 25. Rxd6 {[%emt 0:03:13]} Qxd6 $11 {
[%emt 0:00:12] Endgame KQN-KQN} 26. Qe2 {[%emt 0:01:21]} Nb8 {[%emt 0:09:51]}
27. Qc4 {[%emt 0:04:27]} Nd7 {[%emt 0:01:46]} 28. b4 {[%emt 0:00:00]} c6 {
[%emt 0:11:25]} 29. Kh2 {[%emt 0:01:58]} Nf8 {[%emt 0:01:29]} 30. Qb3 {[%emt 0:
03:27]} Nd7 {[%emt 0:02:50]} 31. bxa5 {[%emt 0:01:43]} bxa5 {[%emt 0:00:07]}
32. Qb7 {[%emt 0:00:06] Hoping for Qa8+.} Nf8 {[%emt 0:07:07]} (32... f5 {
feels hotter.} 33. Nh4 fxe4 34. Nf5 Qd2) 33. Qa7 {[%emt 0:03:28]} Qf6 {[%emt 0:
00:01]} 34. Qxa5 {[%emt 0:00:30]} Qf4+ {[%emt 0:00:01]} 35. Kh1 {[%emt 0:00:14]
} Qxe4 {[%emt 0:00:24]} (35... Qc1+ $14 36. Ng1 Ng6) 36. Nxe5 $2 {[%emt 0:04:
05]} ({Stronger than} 36. Qxe5 Qxa4 37. g3 f6 $11) (36. Qa8 $18) 36... Qe1+ {
[%emt 0:01:01]} (36... Qb1+ $1 $11 {keeps the balance.} 37. Kh2 Qf5) 37. Kh2
$16 {[%emt 0:00:01] Strongly threatening Qc5. White is more active.} Qxf2 {
[%emt 0:00:17] [#]} 38. Nf3 $1 {[%emt 0:00:19]} ({Reject} 38. Nxc6 $6 Qf4+ 39.
Kh1 Qc1+ 40. Kh2 Qf4+ 41. Kh1 Qc1+ 42. Kh2 Qf4+ $11) 38... Qe3 {[%emt 0:01:28]
[#]} (38... Ne6 $16) 39. Qe5 $2 {[%emt 0:05:12]} (39. Qa8 $1 $18) 39... Qa7 $11
{[%emt 0:00:22] The position is equal.} 40. a5 {[%emt 0:02:26] aiming for Nd4.}
c5 {[%emt 0:01:24] Against Nd4} 41. a6 {[%emt 0:07:40]} Qxa6 {[%emt 0:05:33]}
42. Qxc5 {[%emt 0:04:46]} Ne6 {[%emt 0:00:22]} 43. Qe7 {[%emt 0:07:14]} Qb5 {
[%emt 0:02:16]} 44. Qb4 {[%emt 0:03:13]} Qc6 {[%emt 0:00:00]} 45. Qb8+ {
[%emt 0:01:24]} Nf8 {[%emt 0:03:17]} 46. Qe5 {[%emt 0:01:23]} Ng6 {[%emt 0:03:
05]} 47. Qd4 {[%emt 0:03:23] Weighted Error Value: White=0.15 (very precise) /
Black=0.15 (very precise)} 1/2-1/2